[Event "Silver Lake Festival 2022"]
[Site "Veliko Gradiste"]
[Date "2022.06.23"]
[Round "6.12"]
[White "Doraszelski, Alexander"]
[Black "Govedarica, Radovan"]
[Result "0-1"]
[ECO "B23"]
[WhiteElo "1887"]
[BlackElo "2289"]
[Annotator "TA"]
[PlyCount "88"]
[EventDate "2022.06.16"]
[EventType "swiss"]
[EventCountry "SRB"]
[SourceTitle "playchess.com"]
[Source "ChessBase"]
[SourceQuality "1"]
[TimeControl "5400+30"]

{[%evp 9,88,6,20,11,29,11,26,14,47,16,66,63,57,47,48,40,36,0,0,0,17,7,85,0,0,0,10,0,18,0,43,0,530,-91,-91,-87,-17,-17,-18,-20,-35,-15,-29,-89,-86,-107,-103,-146,-141,-266,-101,-97,-100,-93,-93,-99,-94,-99,-64,-71,-66,-140,-142,-135,-137,-309,-268,-319,-250,-266,-229,-288,-285,-285,-285,-271,-268,-257,-252,-302,-302]} 1. e4 {[%emt 1:31:00]} c5 {[%emt 1:31:00]} 2. Nc3 {[%emt 0:00:30]} Nc6 {[%emt 0:00:30]} 3. Bb5 {[%emt 0:00:30]} Nd4 {[%emt 0:00:30]} 4. Nf3 {[%emt 0:00:30]} Nxb5 {[%emt 0:00:30]} 5. Nxb5 {[%emt 0:00:30]} a6 {[%emt 0:00:30]} 6. Nc3 {[%emt 0:00:30] B23: Closed Sicilian: Lines without g3.} e6 {[%emt 0:00:30]} 7. d4 {[%emt 0:00:30]} cxd4 {[%emt 0:00:30]} 8. Qxd4 {[%emt 0:00:00] White has an edge.} d6 {[%emt 0:00:00]} 9. Bg5 {[%emt 0:01:00]} Nf6 {[%emt 0:01:00]} ({Black should play} 9... f6 $11 10. Be3 Ne7) 10. O-O-O $14 {[%emt 0:00:00] Hoping for e5.} Be7 $1 {[%emt 0:00:00]} 11. e5 {[%emt 0:00:00]} dxe5 {[%emt 0:00:00]} 12. Qxe5 {[%emt 0:00:00]} Bd7 {[%emt 0:00:00] [#]} 13. Kb1 $146 {[%emt 0:00:00]} ({Predecessor:} 13. Rd2 Qc8 14. Rhd1 Bc6 15. Nd4 O-O 16. Nf5 exf5 17. Qxe7 Ne4 18. Nxe4 fxe4 19. h3 {½-½ (50) Jones,G (2672)-Suder,J (2321) Chess.com INT 2022}) 13... Rc8 {[%emt 0:00:00]} 14. Rhe1 {[%emt 0:00:00]} Qc7 {[%emt 0:00:00]} 15. Bxf6 {[%emt 0:00:00]} gxf6 {[%emt 0:00:00] [#]} (15... Bxf6 $11 16. Qxc7 Rxc7) 16. Qd4 {[%emt 0:00:00]} ({Better is} 16. Qe3 $1 $16) 16... Bc6 {[%emt 0:00:00]} 17. Qg4 {[%emt 0:00:00] Against Rg8} Kf8 {[%emt 0:00:00]} 18. Qh5 {[%emt 0:04:30]} h6 {[%emt 0:04:30]} 19. Nd4 {[%emt 0:00:00][%cal Oe1e6] And now Rxe6! would win.} Bd7 {[%emt 0:00:00]} 20. Nf5 {[%emt 0:00:00]} Bb4 {[%emt 0:00:00][%mdl 8192]} (20... exf5 $2 {[#]} 21. Rxe7 $1 {[%mdl 512]} Kxe7 22. Nd5+ Ke8 23. Nxc7+ Rxc7 24. Qh4 $18) (20... Bc5 $11 {and Black stays safe.} 21. Nd4 (21. Nxh6 Be8 $17) 21... Be7) 21. Nxh6 $2 {[%emt 0:00:00] Pair of Knights!} (21. Qg4 $18 exf5 22. Qxb4+ Kg7 23. Re7) 21... Be8 $17 {[%emt 0:00:00]} 22. Re3 {[%emt 0:00:00][%cal Oh5g4]} Qf4 {[%emt 0:00:00]} (22... Be7 $17 {Threatens to win with ...f5.} 23. Rh3 f5) 23. Re4 $11 {[%emt 0:00:00]} Qxh6 {[%emt 0:00:00]} 24. Qxh6+ {[%emt 0:00:00]} Rxh6 {[%emt 0:00:00]} 25. Rxb4 {[%emt 0:00:00]} Bc6 {[%emt 0:00:00]} 26. h4 {[%emt 0:00:00]} (26. g3 $11) 26... Bxg2 $17 {[%emt 0:00:00]} 27. Ne2 {[%emt 0:00:00]} f5 {[%emt 0:00:00]} 28. Rg1 {[%emt 0:00:00]} Be4 {[%emt 0:00:00]} 29. Ng3 {[%emt 0:00:00]} (29. Nc3 $17 {was necessary.}) 29... Bc6 $2 {[%emt 0:00:00]} ({Stronger than} 29... Rxh4 30. Nxe4 Rxe4 31. Rxe4 (31. Rxb7 Re2 $17) 31... fxe4 32. Kc1 $17) (29... Bxc2+ $19 {and Black stays clearly on top.} 30. Ka1 e5 31. Rxb7 Rxh4) 30. h5 {[%emt 0:00:00]} Ke7 {[%emt 0:00:00]} 31. Rh4 {[%emt 0:00:00]} Kf6 {[%emt 0:00:00]} 32. f4 {[%emt 0:00:00]} Bf3 {[%emt 0:00:00]} 33. Kc1 {[%emt 0:00:00]} Rch8 {[%emt 0:00:00] Black is more active.} 34. Kd2 {[%emt 0:00:00]} Bxh5 {[%emt 0:00:00]} 35. Rxh5 {[%emt 0:01:49]} (35. Rgh1 $15 Kg6 36. Ke3) 35... Rxh5 {[%emt 0:00:00]} 36. Nxh5+ {[%emt 0:00:01]} Rxh5 {[%emt 0:00:00][%mdl 4096] Endgame KR-KR} 37. Rg8 $2 {[%emt 0:00:30]} (37. Rf1 $17) 37... Rh2+ $19 {[%emt 0:00:00]} 38. Kd3 {[%emt 0:00:10]} Rf2 {[%emt 0:00:00]} 39. Rb8 {[%emt 0:00:31]} b5 {[%emt 0:00:00]} 40. a4 {[%emt 0:00:01]} bxa4 {[%emt 0:00:00] Black has a decisive advantage.} 41. Rb4 {[%emt 0:00:02]} a3 {[%emt 0:00:00]} 42. bxa3 {[%emt 0:00:03]} Rf3+ {[%emt 0:00:00]} 43. Kd2 {[%emt 0:00:36]} Rxa3 {[%emt 0:00:00]} 44. c4 {[%emt 0:00:13]} a5 {[%emt 0:00:00] What a bad dream for White.  Weighted Error Value: White=0.44/Black=0.36} 0-1

[Event "Silver Lake Festival 2022"]
[Site "Veliko Gradiste"]
[Date "2022.06.24"]
[Round "7.1"]
[White "Song, Raymond"]
[Black "Stremavicius, Titas"]
[Result "1-0"]
[ECO "B45"]
[WhiteElo "2485"]
[BlackElo "2508"]
[Annotator "TA"]
[PlyCount "85"]
[EventDate "2022.06.16"]
[EventType "swiss"]
[EventCountry "SRB"]
[SourceTitle "playchess.com"]
[Source "ChessBase"]
[SourceQuality "1"]
[TimeControl "5400+30"]

{[%evp 16,85,22,25,72,65,88,70,78,76,64,63,96,109,104,75,96,104,108,86,93,61,67,39,120,106,130,115,134,135,106,80,113,123,115,1,134,29,85,0,0,-44,0,-79,-81,-198,-195,-211,-209,-240,-214,-182,0,0,166,157,147,159,389,380,389,385,373,381,376,349,509,516,606,577,1171,1082]} 1. e4 {[%emt 0:00:03]} c5 {[%emt 0:01:38]} 2. Nf3 {[%emt 0:00:06]} e6 {[%emt 0:00:07]} 3. d4 {[%emt 0:00:05]} cxd4 {[%emt 0:00:05]} 4. Nxd4 {[%emt 0:00:04]} Nf6 {[%emt 0:00:07]} 5. Nc3 {[%emt 0:00:04][%cal Bb1c3,Bc3e4,Be4g5,Bg5f3][%mdl 32]} Nc6 {[%emt 0:00:07]} 6. Nxc6 {[%emt 0:00:20]} bxc6 {[%emt 0:00:07]} 7. e5 {[%emt 0:00:02]} Nd5 {[%emt 0:00:07]} 8. Ne4 {[%emt 0:00:07]} Qc7 {[%emt 0:00:04]} 9. f4 $1 {[%emt 0:00:03]} Rb8 {[%emt 0:00:05] B45: Sicilian Four Knights.} (9... Qa5+ $11 10. c3 Be7) 10. c4 $16 {[%emt 0:00:28]} Bb4+ {[%emt 0:00:04]} 11. Ke2 $1 {[%emt 0:00:03]} (11. Kf2 $6 f5 12. exf6 (12. cxd5 fxe4 13. d6 Qa5 $11) 12... Nxf6 13. Nxf6+ gxf6 $11) 11... O-O $1 {[%emt 0:00:07][%cal Of7f6] White is slightly better.} 12. cxd5 {[%emt 0:00:05]} cxd5 {[%emt 0:00:05]} 13. Ng5 {[%emt 0:00:09]} d6 {[%emt 0:00:06]} 14. a3 $1 {[%emt 0:00:12]} Ba5 {[%emt 0:00:04]} 15. exd6 {[%emt 0:00:43]} (15. Qd3 $2 Ba6 16. Qxa6 Qc2+ 17. Kf3 Rb3+ 18. Be3 dxe5 $1 $19) 15... Qxd6 {[%emt 0:00:05]} 16. Qc2 {[%emt 0:00:03][%csl Gg5][%cal Rc2h7]} g6 {[%emt 0:00:05] And now ...e5 would win.} 17. Nf3 {[%emt 0:07:03] Against e5} f6 {[%emt 0:00:07]} 18. b4 {[%emt 0:08:01]} Bb6 {[%emt 0:00:15]} 19. Ke1 {[%emt 0:00:22]} Bd7 {[%emt 0:20:33] [#]} (19... e5 $14) 20. Be2 $146 {[%emt 0:01:15]} ({Predecessor:} 20. Qb3 e5 21. fxe5 fxe5 22. Bb2 Rf4 23. Rc1 Rbf8 24. Rc2 a5 25. Nxe5 Re8 26. Re2 {1-0 (45) Wernikiewicz,Z (2329)-Troia,E (2237) ICCF email 2015}) 20... a5 {[%emt 0:07:22]} 21. Qd2 {[%emt 0:04:14]} e5 {[%emt 0:08:50]} 22. fxe5 $1 {[%emt 0:01:56]} (22. bxa5 Bc5 $14) 22... fxe5 {[%emt 0:00:02]} 23. Bb2 $1 {[%emt 0:00:10]} (23. bxa5 Bc5 24. Qc3 Rxf3 25. Qxf3 (25. gxf3 $2 Bd4 $19) 25... Bd4 $17) 23... d4 {[%emt 0:00:06]} 24. Rf1 $1 {[%emt 0:03:31]} (24. bxa5 $6 Bxa5 25. Qxa5 Rxb2 26. Bc4+ (26. Nxe5 $2 Bb5 $19) (26. Qxe5 Rxe2+ 27. Kxe2 Re8 $17) 26... Kg7 $11) 24... Be6 {[%emt 0:05:39]} 25. Qh6 {[%emt 0:15:27]} ({Better is} 25. Ng5 $16) 25... Bd8 {[%emt 0:11:34]} (25... Bd5 $1 $11) 26. b5 {[%emt 0:07:17]} ({White should try} 26. Nd2 $1 $16) 26... a4 $1 $11 {[%emt 0:00:34] Hoping for ...e4.} 27. Rc1 {[%emt 0:10:21]} (27. Qd2 $1 $16) 27... Ba5+ {[%emt 0:05:34]} 28. Kf2 {[%emt 0:02:07]} (28. Nd2 $5 {[%cal Rc1c6]}) 28... e4 {[%emt 0:08:28][%cal Oa5d2][%mdl 64] aiming for ...Bd2! Pin} 29. Rc6 {[%emt 0:03:06]} (29. Rfd1 $11 {keeps the balance.} exf3 30. gxf3) 29... exf3 $17 {[%emt 0:02:30]} (29... Qf4 $2 30. Qxf4 Rxf4 31. Rxe6 $18) (29... Qxc6 $2 30. bxc6 exf3 31. Bxf3 $1 (31. Bxd4 $2 fxe2+ 32. Kxe2 Bc4+ 33. Ke3 Rbe8+ 34. Be5 Rxe5+ 35. Kd4 Bxf1 $19) 31... Rxb2+ 32. Kg1 $18) 30. Bxf3 {[%emt 0:00:11]} (30. Rxd6 $2 {loses.} fxe2+ 31. Kxe2 (31. Qxf8+ Rxf8+ 32. Kxe2 Bc4+ 33. Kd1 Rxf1+ 34. Kc2 d3+ 35. Rxd3 Rf2+) 31... Bc4+ 32. Kd1 Rxf1+ 33. Kc2 Rf2+ 34. Kc1 Rc8 35. Qg7+ (35. Bxd4 Bxb5+) 35... Kxg7 $19) (30. gxf3 $17 Qxc6 31. bxc6 Rxb2 32. Qc1) 30... Qe5 $19 {[%emt 0:07:15]} 31. Rd1 {[%emt 0:01:20]} Rbd8 {[%emt 0:01:32] White must now prevent ...Bb3.} (31... Qxb5 $2 32. Bxd4 $1 Rb7 33. Rxe6 $18) ({Resist} 31... Rf4 32. Rxe6 $1 Rxf3+ 33. gxf3 $14) 32. Kg1 {[%emt 0:02:18]} Bb3 {[%emt 0:06:38]} 33. Rf1 {[%emt 0:02:11]} Rf7 $2 {[%emt 0:07:15]} (33... Qxb5 {leads to mate.} 34. Rxg6+ hxg6 35. Qxg6+ Kh8 36. Bxd4+ $1 {[%mdl 512]} Rxd4 37. Qh6+ Kg8 38. Bd5+ $1 {[%mdl 512]} Rf7 39. Qg6+ Kh8 40. Qh5+ Rh7 41. Rf8+ Kg7 42. Rg8+ Kf6 43. Qg5#) (33... Bc3 $1 $19 {[%cal Rc3b2]} 34. Bxc3 dxc3) 34. b6 $11 {[%emt 0:02:06]} Qb5 $2 {[%emt 0:05:28] [#]} (34... Bc3 $11 {and Black is okay.} 35. Bxc3 dxc3) 35. Bxd4 $1 $18 {[%emt 0:00:43][%cal Oc6g6,Bb2d4,Bd4f2,Bf2b6][%mdl 544] Rxg6+! would kill now.} Qd3 {[%emt 0:02:50] [#]} 36. Bf2 {[%emt 0:09:06] Really sharp! White is more active.} Bc4 $2 {[%emt 0:00:01] [#] Loses the game.} (36... Bd5 $16 37. Bxd5 Qxd5) 37. Rxc4 $1 {[%emt 0:00:17][%mdl 512]} Qxc4 {[%emt 0:00:02]} 38. Qg5 {[%emt 0:00:23][%csl LRa5,LRd8]} Bxb6 {[%emt 0:02:03]} 39. Bxb6 {[%emt 0:00:05]} Rdd7 {[%emt 0:00:17]} 40. h3 {[%emt 0:00:55]} Rf5 {[%emt 0:00:49]} (40... Qe6 {was necessary.}) 41. Qe3 {[%emt 0:00:30] Qe8+ is the strong threat. White is clearly winning.} Qf7 {[%emt 0:01:41] Inhibits Qe8+.} 42. Rc1 {[%emt 0:00:25] Threatens to win with Rc8+.} Rf4 {[%emt 0:00:07]} 43. Qe5 {[%emt 0:01:26] Weighted Error Value: White=0.18 (very precise) /Black=0.41} 1-0

[Event "Silver Lake Festival 2022"]
[Site "Veliko Gradiste"]
[Date "2022.06.24"]
[Round "7.2"]
[White "Mohammad Nubairshah Shaikh"]
[Black "Strikovic, Aleksa"]
[Result "1/2-1/2"]
[ECO "E94"]
[WhiteElo "2443"]
[BlackElo "2502"]
[Annotator "TA"]
[PlyCount "43"]
[EventDate "2022.06.16"]
[EventType "swiss"]
[EventCountry "SRB"]
[SourceTitle "playchess.com"]
[Source "ChessBase"]
[SourceQuality "1"]
[TimeControl "5400+30"]

{[%evp 19,43,71,77,63,97,82,110,88,115,83,71,90,75,41,41,41,41,41,44,40,41,41,47,39,39,28]} 1. d4 d6 2. Nf3 Nf6 3. c4 g6 4. Nc3 Bg7 5. e4 O-O 6. Be2 e5 7. O-O Nbd7 8. d5 c6 9. Be3 c5 10. Ne1 Ne8 11. Qd2 {E94: King's Indian: Classical: 6 Be2 e5 7 0-0: Various Black 7th moves.} Bf6 12. Nd3 Ng7 13. g4 {White is better.} Be7 14. f4 exf4 15. Bxf4 f6 {[#]} 16. Bh6 $146 {[%emt 0:07:39] White is much more active.} ({Predecessor:} 16. a3 Ne5 17. Nxe5 fxe5 18. Be3 Bd7 19. b4 b6 20. Rxf8+ Qxf8 21. Nd1 Qc8 22. Nf2 {½-½ (48) Prudnikova,S (2426)-Djingarova,E (2310) Istanbul 2003}) 16... Ne5 $1 {[%emt 0:14:27] White is slightly better.} 17. Nxe5 {[%emt 0:00:30]} fxe5 {[%emt 0:00:30]} 18. Rxf8+ {[%emt 0:00:30]} Bxf8 {[%emt 0:00:30]} 19. Rf1 {[%emt 0:00:30]} Bd7 {[%emt 0:00:30]} 20. Bd1 {[%emt 0:00:30]} Be7 $1 {[%emt 0:00:30]} 21. Qf2 {[%emt 0:00:30] [#] White wants to mate with Qf7+.} Qf8 {[%emt 0:00:30] Prevents Qf7+.} 22. Qg3 {[%emt 0:00:30] Weighted Error Value: White=0.12 (very precise) /Black=0.07 (flawless)} 1/2-1/2

[Event "Silver Lake Festival 2022"]
[Site "Veliko Gradiste"]
[Date "2022.06.24"]
[Round "7.3"]
[White "Sadikhov, Ulvi"]
[Black "Krstulovic, Alex"]
[Result "0-1"]
[ECO "A36"]
[WhiteElo "2491"]
[BlackElo "2413"]
[Annotator "TA"]
[PlyCount "104"]
[EventDate "2022.06.16"]
[EventType "swiss"]
[EventCountry "SRB"]
[SourceTitle "playchess.com"]
[Source "ChessBase"]
[SourceQuality "1"]
[TimeControl "5400+30"]

{[%evp 16,104,17,0,0,-7,0,0,0,0,14,0,33,24,34,36,22,20,13,20,30,29,33,39,33,29,38,8,0,0,66,56,148,143,121,91,236,156,160,137,95,49,51,50,45,-136,-137,-524,-524,-524,-524,-522,-518,-510,-498,-487,-257,-424,-425,-406,-368,-354,-200,-170,-110,-110,-110,-110,-110,-110,-102,-113,-106,-172,-156,-152,-147,-171,-171,-507,-482,-449,-436,-791,-783,-783,-761,-5828,-5821,-1527,-1405]} 1. c4 {[%emt 0:00:03]} Nf6 {[%emt 0:03:08]} 2. Nc3 {[%emt 0:00:26]} g6 {[%emt 0:01:05]} 3. g3 {[%emt 0:00:17]} Bg7 {[%emt 0:00:05]} 4. Bg2 {[%emt 0:00:05]} O-O {[%emt 0:00:05]} 5. d3 {[%emt 0:00:22]} d6 {[%emt 0:00:46]} 6. e3 {[%emt 0:00:30]} c5 {[%emt 0:04:12]} 7. Nge2 {[%emt 0:00:09]} Nc6 {[%emt 0:02:35]} 8. O-O {[%emt 0:00:08]} Bd7 {[%emt 0:02:25]} 9. h3 {[%emt 0:01:03]} a6 {[%emt 0:04:59] A36: Symmetrical English vs ...g6: 4 Bg2 Bg7.} 10. b3 {[%emt 0:01:20]} Qc8 {[%emt 0:04:52]} 11. Kh2 {[%emt 0:01:17]} b5 {[%emt 0:00:57] The position is equal.} 12. Bb2 {[%emt 0:00:15]} Rb8 {[%emt 0:01:38]} 13. Qd2 {[%emt 0:00:27] [#]} bxc4 $146 {[%emt 0:11:21]} ({Predecessor:} 13... Rd8 14. Rac1 e6 15. Rfd1 Be8 16. Nf4 b4 17. Ne4 Nxe4 18. dxe4 Ne5 19. Ne2 Bc6 {0-1 (28) Supi,L (2572)-Iturrizaga Bonelli,E (2607) chess24.com INT 2020}) 14. dxc4 {[%emt 0:02:28]} a5 {[%emt 0:05:41]} 15. Rad1 {[%emt 0:07:35]} Nb4 {[%emt 0:02:02][%cal Oa5a4]} 16. a4 {[%emt 0:00:44]} Bc6 {[%emt 0:07:43]} 17. e4 {[%emt 0:03:04]} Qb7 {[%emt 0:00:15][%cal Rf6e4]} 18. Nd5 {[%emt 0:04:04]} Nbxd5 {[%emt 0:11:11]} 19. exd5 {[%emt 0:02:21]} Bd7 {[%emt 0:00:38]} 20. Nc1 {[%emt 0:00:25]} Qb4 {[%emt 0:01:58]} 21. Qe2 {[%emt 0:11:16]} Rfe8 {[%emt 0:00:22][%cal Od7a4]} 22. Rd3 {[%emt 0:10:29]} e6 {[%emt 0:17:58]} (22... Nh5 $11) 23. Bc3 $14 {[%emt 0:04:51]} Qa3 {[%emt 0:01:36]} (23... Ng4+ $2 24. Qxg4 Bxc3 25. Na2 Qxb3 26. Nxc3 $18) (23... Qb6 $1 $14) 24. dxe6 $16 {[%emt 0:06:50]} Bxe6 {[%emt 0:01:45]} 25. Qd2 {[%emt 0:04:14]} ({Inferior is} 25. Rxd6 Bxh3 $1 26. Bb2 Qb4 $1 $17) 25... Nh5 {[%emt 0:06:02]} (25... d5 $16) 26. Bxg7 {[%emt 0:01:02]} (26. Bxa5 Be5 27. Bc7 Bf5) 26... Nxg7 {[%emt 0:00:02][%cal Bh5g7,Bg7e6,Be6d4][%mdl 32]} 27. g4 {[%emt 0:13:48] Inhibits Nf5.} ({Don't do} 27. Rxd6 $6 Nf5 $16) 27... h5 {[%emt 0:00:52]} 28. Qxa5 {[%emt 0:05:23]} ({White should play} 28. Rg3 $16) 28... hxg4 $14 {[%emt 0:00:40]} 29. hxg4 {[%emt 0:00:02]} Bxg4 {[%emt 0:00:35]} 30. Rd2 $2 {[%emt 0:01:53] [#]} (30. Qc3 $14 {stays ahead.}) 30... Qa1 $1 $17 {[%emt 0:01:01]} 31. Qc7 $2 {[%emt 0:09:56][%mdl 8192]} (31. Kg1 $17 {is more resistant.}) 31... Ne6 $19 {[%emt 0:04:02]} 32. Qc6 {[%emt 0:01:30]} Qe5+ {[%emt 0:00:40]} 33. Kg1 {[%emt 0:01:33]} Nd4 {[%emt 0:01:27]} 34. Qd5 {[%emt 0:00:55]} Qf4 {[%emt 0:00:36]} 35. Rd3 {[%emt 0:01:33]} Be6 {[%emt 0:02:08]} (35... Kg7 $142 36. Rxd4 cxd4) 36. Rxd4 $2 {[%emt 0:02:39]} (36. Qe4 Qxe4 37. Bxe4) 36... cxd4 {[%emt 0:00:20]} 37. Qf3 {[%emt 0:00:52]} Qxf3 {[%emt 0:00:42]} 38. Bxf3 {[%emt 0:00:03]} d3 {[%emt 0:00:31]} (38... Bf5 $142 {Threatens to win with ...d3.} 39. Kg2 Bc2) 39. Rd1 {[%emt 0:01:09]} d2 {[%emt 0:00:28]} (39... d5 $19 40. cxd5 Bf5) 40. Rxd2 $17 {[%emt 0:00:10] [#]} Bxc4 $1 {[%emt 0:00:05][%mdl 512]} 41. bxc4 {[%emt 0:00:33] Black must now prevent Ne2.} Re1+ {[%emt 0:00:01]} 42. Kg2 {[%emt 0:00:04] aiming for Nd3.} Rxc1 {[%emt 0:00:04]} 43. Rxd6 {[%emt 0:00:24]} Rxc4 {[%emt 0:01:43][%mdl 4096] Endgame KRR-KRB} 44. a5 {[%emt 0:01:21]} (44. Rxg6+ $17 fxg6 45. Bd5+ Kf8 46. Bxc4) 44... Ra4 {[%emt 0:00:25]} 45. a6 {[%emt 0:00:03]} Rb5 {[%emt 0:00:39]} 46. Bb7 {[%emt 0:00:58]} Kg7 {[%emt 0:00:19]} 47. f3 $2 {[%emt 0:00:49]} (47. Rd7 {is a better chance.}) 47... Rb2+ $19 {[%emt 0:00:48] Black is clearly winning.} 48. Kg3 {[%emt 0:00:05]} f5 {[%emt 0:00:29]} 49. Bd5 {[%emt 0:00:44]} (49. Rd7+ $142 Kf6 50. Rd3) 49... Rd2 {[%emt 0:00:31]} 50. Rd7+ {[%emt 0:00:40]} Kh6 {[%emt 0:00:01]} 51. a7 {[%emt 0:00:24]} Kg5 {[%emt 0:00:39] ( -> ...f4+)} 52. f4+ {[%emt 0:02:14]} Kh6 {[%emt 0:00:00] Weighted Error Value: White=0.71/Black=0.24 (precise)} 0-1

[Event "Silver Lake Festival 2022"]
[Site "Veliko Gradiste"]
[Date "2022.06.24"]
[Round "7.4"]
[White "Manish Anto Cristiano F"]
[Black "Ramoutar, Alan-Safar"]
[Result "1/2-1/2"]
[ECO "B11"]
[WhiteElo "2071"]
[BlackElo "2477"]
[Annotator "TA"]
[PlyCount "109"]
[EventDate "2022.06.16"]
[EventType "swiss"]
[EventCountry "SRB"]
[SourceTitle "playchess.com"]
[Source "ChessBase"]
[SourceQuality "1"]
[TimeControl "5400+30"]

{[%evp 10,109,27,30,25,31,24,24,16,16,28,26,36,54,49,40,52,47,47,33,54,53,72,54,101,106,92,0,0,0,14,14,14,14,14,14,14,14,22,15,15,15,31,42,27,14,14,14,14,14,14,14,14,14,15,15,15,14,14,7,7,7,14,0,14,7,7,7,7,0,7,7,7,7,7,7,14,0,2,2,2,2,8,8,8,0,6,7,8,8,8,0,0,0,0,0,0,0,0,0,0,0]} 1. e4 {[%emt 0:00:08]} c6 {[%emt 0:00:21]} 2. Nc3 {[%emt 0:00:45]} d5 {[%emt 0:00:13]} 3. Nf3 {[%emt 0:00:42][%cal Bg1f3,Bf3e5,Be5c6][%mdl 32]} dxe4 {[%emt 0:00:16]} 4. Nxe4 {[%emt 0:00:13]} Nf6 {[%emt 0:00:07]} 5. Qe2 {[%emt 0:00:36]} Nxe4 {[%emt 0:00:18]} 6. Qxe4 {[%emt 0:00:17]} Nd7 {[%emt 0:00:11] B11: Caro-Kann: Two Knights Variation.} 7. Bc4 {[%emt 0:00:29] aiming for Ng5.} Nf6 {[%emt 0:00:38] [#]} 8. Ne5 $1 {[%emt 0:00:15][%csl Ge5][%cal Rc4f7]} e6 {[%emt 0:00:12] White has an edge.} 9. Qe2 {[%emt 0:00:39]} b5 {[%emt 0:00:48]} 10. Bd3 {[%emt 0:00:14]} ({Much weaker is} 10. Nxc6 Qc7 11. Bd3 (11. Bxb5 a6 $17) 11... a6 $15) 10... Qc7 {[%emt 0:01:28]} 11. a4 {[%emt 0:00:59]} Bd6 {[%emt 0:03:21] [#]} 12. Nxc6 {[%emt 0:00:09]} b4 {[%emt 0:00:37]} (12... Qxc6 $2 13. Bxb5 Qd7 14. Bxd7+ $18) 13. Nd4 $1 {[%emt 0:00:11]} a6 {[%emt 0:01:53] Inhibits Nb5.} 14. Nf5 $1 {[%emt 0:00:09]} Bb7 {[%emt 0:00:21]} 15. Nxd6+ {[%emt 0:09:57]} ({Don't play} 15. Nxg7+ Kd7 $15) 15... Qxd6 {[%emt 0:00:02]} 16. f3 {[%emt 0:09:04] [#]} (16. O-O {looks sharper.} Rc8 17. Re1 Rc5 18. Qe3) 16... h5 $146 {[%emt 0:13:13]} (16... Nd5 $14 {deserves consideration.}) ({Predecessor:} 16... Nd5 17. g3 b3 18. c3 h5 19. Be4 h4 20. Rg1 hxg3 21. hxg3 O-O-O 22. Qc4+ Kb8 23. Qxb3 {½-½ (34) Georgiadis,N (2562)-Predojevic,B (2585) Germany 2022}) 17. b3 $16 {[%emt 0:21:18]} Nd5 {[%emt 0:07:08] White must now prevent ...Nf4.} 18. Bb2 {[%emt 0:12:23]} (18. g3 $16) 18... Nf4 $11 {[%emt 0:01:13]} 19. Be5 {[%emt 0:01:37]} Qxd3 {[%emt 0:16:27]} 20. cxd3 {[%emt 0:03:36]} Nxe2 {[%emt 0:00:07]} 21. Kxe2 {[%emt 0:00:05]} a5 {[%emt 0:00:41]} 22. Rhc1 {[%emt 0:01:58]} Bd5 {[%emt 0:05:38]} 23. Rc5 {[%emt 0:03:22]} O-O {[%emt 0:18:01]} ({Don't do} 23... f6 24. Bc7 $16) 24. Rb1 {[%emt 0:05:01]} Rfc8 {[%emt 0:01:04]} 25. d4 {[%emt 0:00:02]} Kf8 {[%emt 0:04:30]} 26. Bc7 {[%emt 0:03:39]} Ke8 {[%emt 0:01:18]} 27. Rbc1 {[%emt 0:03:48]} Bxb3 {[%emt 0:06:03] The position is equal.} 28. Bxa5 {[%emt 0:00:12]} Rxc5 {[%emt 0:02:18]} 29. Rxc5 {[%emt 0:00:02][%mdl 4096] Endgame KRB-KRB} Bd5 {[%emt 0:04:09]} 30. Bxb4 {[%emt 0:01:11]} Rxa4 {[%emt 0:00:10]} 31. Bc3 {[%emt 0:00:15]} Ke7 {[%emt 0:01:52]} 32. Rc7+ {[%emt 0:00:41]} Kf6 {[%emt 0:00:10]} 33. Rc8 {[%emt 0:01:04]} g5 {[%emt 0:00:40]} 34. Rh8 {[%emt 0:01:21]} Kg6 {[%emt 0:01:51]} 35. Rg8+ {[%emt 0:00:19]} Kf6 {[%emt 0:00:20]} 36. Rh8 {[%emt 0:00:09]} h4 {[%emt 0:00:31]} 37. Kf2 {[%emt 0:00:29]} Kg7 {[%emt 0:00:40]} 38. Rb8 {[%emt 0:00:14]} Kh7 {[%emt 0:00:57]} 39. Bb4 {[%emt 0:01:29]} Ra2 {[%emt 0:01:52]} 40. Ke3 {[%emt 0:00:02]} f5 {[%emt 0:04:02]} 41. Bc3 {[%emt 0:01:55]} Rc2 {[%emt 0:00:56]} 42. Rb1 {[%emt 0:00:18]} Kg6 {[%emt 0:00:56]} 43. g3 {[%emt 0:00:39]} hxg3 {[%emt 0:01:53]} 44. hxg3 {[%emt 0:00:02]} Ra2 {[%emt 0:00:10]} 45. Ra1 {[%emt 0:00:05]} Rc2 {[%emt 0:00:33]} 46. Kd3 {[%emt 0:00:22]} Ra2 {[%emt 0:00:10]} 47. Ke3 {[%emt 0:00:12]} Rxa1 {[%emt 0:00:29]} 48. Bxa1 {[%emt 0:00:02] KB-KB} Kh5 {[%emt 0:00:23]} 49. Bc3 {[%emt 0:00:14]} g4 {[%emt 0:00:09]} 50. f4 {[%emt 0:00:06]} Kg6 {[%emt 0:00:05]} 51. Bb4 {[%emt 0:00:08]} Kf7 {[%emt 0:00:07]} 52. Kd3 {[%emt 0:00:11]} Ke8 {[%emt 0:00:09]} 53. Kc3 {[%emt 0:00:09]} Kd7 {[%emt 0:00:07]} 54. Kd3 {[%emt 0:00:08]} Kc6 {[%emt 0:00:07]} 55. Be7 {[%emt 0:00:13] Weighted Error Value: White=0.05 (flawless) /Black=0.04 (flawless)} 1/2-1/2